fUSD/lending_fUSD_20240519
["ID","MTS","AMOUNT","RATE_DAILY","PERIOD"]
[327451398,1716078686778,-151.0,0.00029315,7]
[327451399,1716078686789,-782.51,0.00029315,2]
[327451400,1716078686799,-500.0,0.00029315,2]
[327451401,1716078686869,-151.0,0.00029315,7]
[327451402,1716078686878,-151.0,0.00029315,7]
[327451403,1716078686887,-2076.59,0.00029315,2]
[327451404,1716078686896,-14693.09,0.00029315,2]
[327451405,1716078686906,-630.4778609,0.00029315,2]
[327451406,1716078686915,-2483.23,0.00029315,2]
[327451407,1716078686924,-634.11,0.00029315,2]
[327451408,1716078686933,-1053.73,0.00029315,2]
[327451409,1716078686943,-151.0,0.00029315,7]
[327451410,1716078686952,-1080.2,0.00029315,2]
[327451411,1716078686962,-500.0,0.00029315,2]
[327451412,1716078686972,-151.0,0.00029315,7]
[327451413,1716078686981,-4673.28,0.00029315,2]
[327451414,1716078686991,-500.0,0.00029315,2]
[327451415,1716078687000,-500.0,0.00029315,2]
[327451416,1716078687010,-1437.6,0.00029315,2]
[327451417,1716078687020,-500.0,0.00029315,2]
[327451418,1716078687030,-1159.59,0.00029315,2]
[327451419,1716078687039,-151.0,0.00029315,7]
[327451420,1716078687048,-500.0,0.00029315,2]
[327451421,1716078687058,-151.0,0.00029315,7]
[327451422,1716078687068,-627.84,0.00029315,2]
[327451423,1716078687077,-880.42,0.00029315,2]
[327451424,1716078687087,-1488.28,0.00029315,2]
[327451425,1716078687097,-1630.92,0.00029315,2]
[327451426,1716078687107,-9733.43,0.00029315,2]
[327451427,1716078687116,-500.0,0.00029315,2]
[327451428,1716078687127,-880.17,0.00029315,2]
[327451429,1716078687136,-2962.83,0.00029315,2]
[327451430,1716078687147,-349.286604,0.00029315,7]
[327451431,1716078687157,-500.0,0.00029315,2]
[327451432,1716078687166,-500.0,0.00029315,2]
[327451433,1716078687176,-716.13,0.00029315,2]
[327451434,1716078687185,-210.447446,0.00029315,7]
[327451435,1716078687195,-768.84,0.00029315,2]
[327451436,1716078687205,-349.286604,0.00029315,7]
[327451437,1716078687217,-151.0,0.00029315,7]
[327451438,1716078687227,-986.7,0.00029315,2]
[327451439,1716078687236,-297.06,0.00029315,2]
[327451440,1716078687247,-1662.73,0.00029315,2]
[327451441,1716078687256,-4303.61,0.00029315,2]
[327451442,1716078687264,-1840.17,0.00029315,2]
[327451443,1716078687274,-631.36,0.00029315,2]
[327451444,1716078687288,-724.28,0.00029315,2]
[327451445,1716078687297,-151.0,0.00029315,7]
[327451446,1716078687307,-3000.96,0.00029315,2]
[327451447,1716078687316,-613.97,0.00029315,2]
[327451448,1716078687326,-504.46,0.00029315,2]
[327451449,1716078687336,-525.96,0.00029315,2]
[327451450,1716078687345,-151.0,0.00029315,7]
[327451451,1716078687354,-285.600972,0.00029315,7]
[327451452,1716078687365,-500.0,0.00029315,2]
[327451453,1716078687375,-3050.31,0.00029315,2]
[327451454,1716078687384,-2206.8,0.00029315,2]
[327451455,1716078687394,-3296.43,0.00029315,2]
[327451456,1716078687404,-3601.59,0.00029315,2]
[327451457,1716078687415,-285.600972,0.00029315,7]
[327451458,1716078687424,-3041.56,0.00029315,2]
[327451459,1716078687434,-151.0,0.00029315,7]
[327451460,1716078687442,-523.16,0.00029315,2]
[327451461,1716078687452,-2275.09,0.00029315,2]
[327451462,1716078687463,-500.0,0.00029315,2]
[327451463,1716078687473,-3685.01,0.00029315,2]
[327451464,1716078687484,-1919.05,0.00029315,2]
[327451465,1716078687494,-750.61,0.00029315,2]
[327451466,1716078687503,-1219.88,0.00029315,2]
[327451467,1716078687512,-1988.81,0.00029315,2]
[327451468,1716078687521,-606.7,0.00029315,2]
[327451469,1716078687532,-417.967568,0.00029315,7]
[327451470,1716078687542,-500.0,0.00029315,2]
[327451471,1716078687552,-1878.81,0.00029315,2]
[327451472,1716078687562,-2176.0,0.00029315,2]
[327451473,1716078687571,-2585.42,0.00029315,2]
[327451474,1716078687580,-417.967568,0.00029315,7]
[327451475,1716078687590,-3682.41,0.00029315,2]
[327451476,1716078687599,-738.69,0.00029315,2]
[327451477,1716078687608,-500.0,0.00029315,2]
[327451478,1716078687617,-702.165279,0.00029315,7]
[327451479,1716078687625,-1679.77,0.00029315,2]
[327451480,1716078687634,-702.165279,0.00029315,7]
[327451481,1716078687643,-500.0,0.00029315,2]
[327451482,1716078687653,-2986.43,0.00029315,2]
[327451483,1716078687662,-500.0,0.00029315,2]
[327451484,1716078687672,-4242.79,0.00029315,2]
[327451485,1716078687681,-500.0,0.00029315,2]
[327451486,1716078687690,-232.574185,0.00029315,7]
[327451487,1716078687699,-3057.4,0.00029315,2]
[327451488,1716078687708,-1055.1,0.00029315,2]
[327451489,1716078687716,-500.0,0.00029315,2]
[327451490,1716078687726,-232.574185,0.00029315,7]
[327451491,1716078687735,-5880.85,0.00029315,2]
[327451492,1716078687745,-1361.72,0.00029315,2]
[327451493,1716078687755,-2275.09,0.00029315,2]
[327451494,1716078687764,-567.25,0.00029315,2]
[327451495,1716078687773,-1546.63,0.00029315,2]
[327451496,1716078687782,-2234.1,0.00029315,2]
[327451497,1716078687791,-2444.03,0.00029315,2]
[327451498,1716078687800,-500.0,0.00029315,2]
[327451499,1716078687810,-629.55,0.00029315,2]
[327451500,1716078687820,-500.0,0.00029315,2]
[327451501,1716078687830,-500.0,0.00029315,2]
[327451502,1716078687840,-631.01,0.00029315,2]
[327451503,1716078687851,-1214.83,0.00029315,2]
[327451504,1716078687860,-151.0,0.00029315,7]
[327451505,1716078687869,-751.01,0.00029315,2]
[327451506,1716078687879,-500.0,0.00029315,2]
[327451507,1716078687888,-1907.53,0.00029315,2]
[327451508,1716078687898,-2098.31,0.00029315,2]
[327451509,1716078687907,-823.01,0.00029315,2]
[327451510,1716078687917,-1155.69,0.00029315,2]
[327451511,1716078687926,-500.0,0.00029315,2]
[327451512,1716078687936,-598.87,0.00029315,2]
[327451513,1716078687945,-553.76,0.00029315,2]
[327451514,1716078687954,-513.61,0.00029315,2]
[327451515,1716078687965,-2141.74,0.00029315,2]
[327451516,1716078687974,-470.32183003,0.00029315,2]
[327451517,1716078687985,-916.74,0.00029315,2]
[327451518,1716078687995,-971.82,0.00029315,2]
[327451519,1716078688006,-2760.5,0.00029315,2]
[327451520,1716078688016,-1119.54,0.00029315,2]
[327451521,1716078688026,-500.0,0.00029315,2]
[327451522,1716078688035,-432.11169278,0.00029315,2]
[327451523,1716078688044,-2356.22,0.00029315,2]
[327451524,1716078688053,-6798.107725,0.00029315,7]
[327451525,1716078688062,-500.0,0.00029315,2]
[327451526,1716078688072,-220.0,0.0002934,2]
[327451527,1716078688081,-1084.04841038,0.000294,2]
[327451528,1716078688090,-1144.66368197,0.000294,2]
[327451529,1716078688099,-504.2,0.00029404,7]
[327451530,1716078688108,-181.271545,0.00029405,2]
[327451531,1716078688117,-183.916938,0.00029405,2]
[327451532,1716078688126,-165.288311,0.00029405,2]
[327451533,1716078688136,-2427.230616,0.00029405,2]
[327451534,1716078688145,-824.935677,0.00029405,2]
[327451535,1716078688154,-5191.472607,0.00029405,2]
[327451536,1716078688163,-157.051908,0.00029448,16]
[327451537,1716078688173,-200.0,0.00029488,2]
[327451538,1716078688181,-1000.0,0.00029488,15]
[327451539,1716078688190,-500.0,0.00029488,2]
[327451540,1716078688200,-200.0,0.00029488,2]
[327451541,1716078688209,-5983.79489043,0.00029488,2]
[327451542,1716078688220,-500.0,0.00029588,2]
[327451543,1716078688230,-500.0,0.00029588,2]
[327451544,1716078688239,-681.95,0.00029589,2]
[327451545,1716078688248,-500.0,0.00029589,2]
[327451546,1716078688257,-500.0,0.00029589,2]
[327451547,1716078688266,-344.11088506,0.00029589,2]
[327451548,1716078688275,-500.0,0.00029589,2]
[327451549,1716078688289,-500.0,0.00029589,2]
[327451550,1716078688298,-500.0,0.00029589,2]
[327451551,1716078688307,-310.89010717,0.00029589,2]
[327451552,1716078688316,-500.0,0.00029589,2]
[327451553,1716078688326,-500.0,0.00029589,2]
[327451554,1716078688335,-500.0,0.00029589,2]
[327451555,1716078688345,-500.0,0.00029589,2]
[327451556,1716078688354,-505.93,0.00029589,2]
[327451557,1716078688363,-517.25,0.00029589,2]
[327451558,1716078688373,-500.0,0.00029589,2]
[327451559,1716078688382,-500.0,0.00029589,2]
[327451560,1716078688392,-500.0,0.00029589,2]
[327451561,1716078688401,-500.0,0.00029589,2]
[327451562,1716078688410,-151.0,0.00029589,7]
[327451563,1716078688420,-500.0,0.00029589,2]
[327451564,1716078688429,-500.0,0.00029589,2]
[327451565,1716078688439,-500.0,0.00029589,2]
[327451566,1716078688449,-237.90934922,0.00029589,2]
[327451567,1716078688459,-500.0,0.00029589,2]
[327451568,1716078688468,-500.0,0.00029589,2]
[327451569,1716078688477,-500.0,0.00029589,2]
[327451570,1716078688487,-500.0,0.00029589,2]
[327451571,1716078688496,-733.98,0.00029589,2]
[327451572,1716078688505,-500.0,0.00029589,2]
[327451573,1716078688515,-500.0,0.00029589,2]
[327451574,1716078688524,-500.0,0.00029589,2]
[327451575,1716078688533,-500.0,0.00029589,2]
[327451576,1716078688544,-500.0,0.00029589,2]
[327451577,1716078688554,-722.95,0.00029589,2]
[327451578,1716078688563,-500.0,0.00029589,2]
[327451579,1716078688572,-1030.53,0.00029589,2]
[327451580,1716078688581,-502.13,0.00029589,2]
[327451581,1716078688591,-500.0,0.00029589,2]
[327451582,1716078688600,-500.0,0.00029589,2]
[327451583,1716078688610,-500.0,0.00029589,2]
[327451584,1716078688619,-500.0,0.00029589,2]
[327451585,1716078688629,-1044.26,0.00029589,2]
[327451586,1716078688638,-583.65,0.00029589,2]
[327451587,1716078688648,-648.82,0.00029589,2]
[327451588,1716078688657,-574.36,0.00029589,2]
[327451589,1716078688667,-537.0,0.00029589,2]
[327451590,1716078688676,-500.0,0.00029589,2]
[327451591,1716078688686,-500.0,0.00029589,2]
[327451592,1716078688695,-500.0,0.00029589,2]
[327451593,1716078688704,-500.0,0.00029589,2]
[327451594,1716078688714,-500.0,0.00029589,2]
[327451595,1716078688724,-500.0,0.00029589,2]
[327451596,1716078688734,-505.89,0.00029589,2]
[327451597,1716078688743,-737.65,0.00029589,2]
[327451598,1716078688753,-500.0,0.00029589,2]
[327451599,1716078688763,-500.0,0.00029589,2]
[327451600,1716078688772,-500.0,0.00029589,2]
[327451601,1716078688782,-500.0,0.00029589,2]
[327451602,1716078688791,-500.0,0.00029589,2]
[327451603,1716078688801,-577.98,0.00029589,2]
[327451604,1716078688810,-500.0,0.00029589,2]
[327451605,1716078688820,-500.0,0.00029589,2]
[327451606,1716078688829,-531.85,0.00029589,2]
[327451607,1716078688838,-500.0,0.00029589,2]
[327451608,1716078688848,-500.0,0.00029589,2]
[327451609,1716078688857,-630.47,0.00029589,2]
[327451610,1716078688867,-921.62,0.00029589,2]
[327451611,1716078688876,-598.64,0.00029589,2]
[327451612,1716078688886,-597.35,0.00029589,2]
[327451613,1716078688896,-500.0,0.00029589,2]
[327451614,1716078688906,-678.99,0.00029589,2]
[327451615,1716078688916,-500.0,0.00029589,2]
[327451616,1716078688926,-1138.39,0.00029589,2]
[327451617,1716078688936,-596.25,0.00029589,2]
[327451618,1716078688946,-500.0,0.00029589,2]
[327451619,1716078688956,-500.0,0.00029589,2]
[327451620,1716078688965,-500.0,0.00029589,2]
[327451621,1716078688975,-827.83,0.00029589,2]
[327451622,1716078688985,-500.0,0.00029589,2]
[327451623,1716078688995,-890.31,0.00029589,2]
[327451624,1716078689006,-1011.91,0.00029589,2]
[327451625,1716078689016,-500.0,0.00029589,2]
[327451626,1716078689026,-500.0,0.00029589,2]
[327451627,1716078689036,-655.15,0.00029589,2]
[327451628,1716078689046,-500.0,0.00029589,2]
[327451629,1716078689056,-500.0,0.00029589,2]
[327451630,1716078689066,-672.45,0.00029589,2]
[327451631,1716078689076,-500.0,0.00029589,2]
[327451632,1716078689085,-500.0,0.00029589,2]
[327451633,1716078689095,-500.0,0.00029589,2]
[327451634,1716078689105,-504.05,0.00029589,2]
[327451635,1716078689115,-689.56,0.00029589,2]
[327451636,1716078689125,-500.0,0.00029589,2]
[327451637,1716078689134,-611.06,0.00029589,2]
[327451638,1716078689145,-500.0,0.00029589,2]
[327451639,1716078689155,-397.30227862,0.00029589,2]
[327451640,1716078689164,-633.75,0.00029589,2]
[327451641,1716078689174,-500.0,0.00029589,2]
[327451642,1716078689184,-900.3,0.00029589,2]
[327451643,1716078689193,-151.0,0.00029589,7]
[327451644,1716078689203,-500.0,0.00029589,2]
[327451645,1716078689214,-500.0,0.00029589,2]
[327451646,1716078689227,-523.89,0.00029589,2]
[327451647,1716078689238,-534.55,0.00029589,2]
[327451648,1716078689248,-569.19,0.00029589,2]
[327451649,1716078689258,-500.0,0.00029589,2]
[327451650,1716078689268,-500.0,0.00029589,2]
[327451651,1716078689280,-500.0,0.00029589,2]
[327451652,1716078689291,-1239.6,0.00029589,2]
[327451653,1716078689301,-500.0,0.00029589,2]
[327451654,1716078689311,-637.24,0.00029589,2]
[327451655,1716078689322,-748.98,0.00029589,2]
[327451656,1716078689331,-500.0,0.00029589,2]
[327451657,1716078689341,-527.94,0.00029589,2]
[327451658,1716078689351,-832.73,0.00029589,2]
[327451659,1716078689365,-500.0,0.00029589,2]
[327451660,1716078689376,-551.34,0.00029589,2]
[327451661,1716078689386,-500.0,0.00029589,2]
[327451662,1716078689397,-500.0,0.00029589,2]
[327451663,1716078689406,-500.0,0.00029589,2]
[327451664,1716078689416,-500.0,0.00029589,2]
[327451665,1716078689426,-876.87,0.00029589,2]
[327451666,1716078689436,-500.0,0.00029589,2]
[327451667,1716078689446,-500.0,0.00029589,2]
[327451668,1716078689456,-812.13,0.00029589,2]
[327451669,1716078689466,-648.2,0.00029589,2]
[327451670,1716078689488,-500.0,0.00029589,2]
[327451671,1716078689500,-1583.82,0.00029589,2]
[327451672,1716078689513,-500.0,0.00029589,2]
[327451673,1716078689523,-1475.35,0.00029589,2]
[327451674,1716078689534,-895.82,0.00029589,2]
[327451675,1716078689544,-500.0,0.00029589,2]
[327451676,1716078689554,-670.03,0.00029589,2]
[327451677,1716078689565,-882.87,0.00029589,2]
[327451678,1716078689575,-500.0,0.00029589,2]
[327451679,1716078689586,-500.0,0.00029589,2]
[327451680,1716078689596,-580.61,0.00029589,2]
[327451681,1716078689606,-545.97,0.00029589,2]
[327451682,1716078689617,-500.0,0.00029589,2]
[327451683,1716078689626,-634.79,0.00029589,2]
[327451684,1716078689637,-500.0,0.00029589,2]
[327451685,1716078689647,-500.0,0.00029589,2]
[327451686,1716078689659,-529.56,0.00029589,2]
[327451687,1716078689669,-589.30176432,0.00029589,2]
[327451688,1716078689680,-2239.3,0.00029589,2]
[327451689,1716078689690,-500.0,0.00029589,2]
[327451690,1716078689700,-619.46,0.00029589,2]
[327451691,1716078689711,-823.42,0.00029589,2]
[327451692,1716078689722,-500.0,0.00029589,2]
[327451693,1716078689733,-899.65,0.00029589,2]
[327451694,1716078689743,-541.86,0.00029589,2]
[327451695,1716078689753,-716.2,0.00029589,2]
[327451696,1716078689763,-229.667264,0.00029589,7]
[327451697,1716078689773,-621.68,0.00029589,2]
[327451698,1716078689784,-233.455304,0.00029589,7]
[327451699,1716078689794,-229.667264,0.00029589,7]
[327451700,1716078689804,-153.464676,0.00029589,7]
[327451701,1716078689815,-1398.84,0.00029589,2]
[327451702,1716078689825,-669.33,0.00029589,2]
[327451703,1716078689835,-557.15,0.00029589,2]
[327451704,1716078689846,-500.0,0.00029589,2]
[327451705,1716078689856,-735.95,0.00029589,2]
[327451706,1716078689866,-669.0,0.00029589,2]
[327451707,1716078689876,-171.28,0.00029589,2]
[327451708,1716078689887,-154.011408,0.00029589,7]
[327451709,1716078689898,-753.99,0.00029589,2]
[327451710,1716078689908,-1923.63,0.00029589,2]
[327451711,1716078689918,-884.1,0.00029589,2]
[327451712,1716078689928,-355.09,0.00029589,2]
[327451713,1716078689939,-502.58327532,0.00029589,2]
[327451714,1716078689949,-656.37,0.00029589,2]
[327451715,1716078689959,-358.384419,0.00029589,7]
[327451716,1716078689971,-500.0,0.00029589,2]
[327451717,1716078689982,-358.384419,0.00029589,7]
[327451718,1716078689993,-928.15,0.00029589,2]
[327451719,1716078690005,-500.0,0.00029589,2]
[327451720,1716078690015,-500.0,0.00029589,2]
[327451721,1716078690025,-806.75,0.00029589,2]
[327451722,1716078690036,-685.35,0.00029589,2]
[327451723,1716078690046,-648.92,0.00029589,2]
[327451724,1716078690057,-151.0,0.00029589,7]
[327451725,1716078690067,-500.0,0.00029589,2]
[327451726,1716078690077,-500.0,0.00029589,2]
[327451727,1716078690087,-151.0,0.00029589,7]
[327451728,1716078690098,-614.14,0.00029589,2]
[327451729,1716078690108,-813.03,0.00029589,2]
[327451730,1716078690119,-791.44,0.00029589,2]
[327451731,1716078690129,-500.0,0.00029589,2]
[327451732,1716078690139,-151.0,0.00029589,7]
[327451733,1716078690149,-500.0,0.00029589,2]
[327451734,1716078690159,-1036.27,0.00029589,2]
[327451735,1716078690169,-693.8,0.00029589,2]
[327451736,1716078690179,-500.0,0.00029589,2]
[327451737,1716078690190,-1117.96,0.00029589,2]
[327451738,1716078690200,-774.17,0.00029589,2]
[327451739,1716078690211,-500.0,0.00029589,2]
[327451740,1716078690222,-151.0,0.00029589,7]
[327451741,1716078690232,-500.0,0.00029589,2]
[327451742,1716078690242,-554.73,0.00029589,2]
[327451744,1716078690253,-762.69,0.00029589,2]
[327451745,1716078690263,-500.0,0.00029589,2]
[327451746,1716078690273,-500.0,0.00029589,2]
[327451747,1716078690288,-151.0,0.00029589,7]
[327451748,1716078690299,-259.411566,0.00029589,7]
[327451749,1716078690309,-500.0,0.00029589,2]
[327451750,1716078690320,-151.0,0.00029589,7]
[327451751,1716078690330,-150.0,0.00029589,2]
[327451752,1716078690340,-259.411566,0.00029589,7]
[327451753,1716078690350,-1681.9,0.00029589,2]
[327451754,1716078690361,-1315.61,0.00029589,2]
[327451755,1716078690371,-151.0,0.00029589,7]
[327451756,1716078690381,-518.65,0.00029589,2]
[327451757,1716078690392,-1008.21,0.00029589,2]
[327451758,1716078690402,-578.45,0.00029589,2]
[327451759,1716078690412,-500.0,0.00029589,2]
[327451760,1716078690422,-500.0,0.00029589,2]
[327451761,1716078690433,-665.8,0.00029589,2]
[327451762,1716078690443,-512.39,0.00029589,2]
[327451763,1716078690453,-500.0,0.00029589,2]
[327451764,1716078690464,-1367.82,0.00029589,2]
[327451765,1716078690475,-500.0,0.00029589,2]
[327451766,1716078690486,-151.0,0.00029589,7]
[327451767,1716078690497,-966.33,0.00029589,2]
[327451768,1716078690694,-911.7,0.00029589,2]
[327451769,1716078690704,-957.33,0.00029589,2]
[327451770,1716078690713,-1131.82,0.00029589,2]
[327451771,1716078690724,-500.0,0.00029589,2]
[327451772,1716078690734,-246.114604,0.00029589,7]
[327451773,1716078690743,-1166.35,0.00029589,2]
[327451774,1716078690753,-500.0,0.00029589,2]
[327451775,1716078690763,-500.0,0.00029589,2]
[327451776,1716078690772,-862.14,0.00029589,2]
[327451777,1716078690782,-960.69,0.00029589,2]
[327451778,1716078690792,-522.68,0.00029589,2]
[327451779,1716078690801,-654.36,0.00029589,2]
[327451780,1716078690811,-500.0,0.00029589,2]
[327451781,1716078690821,-500.0,0.00029589,2]
[327451782,1716078690831,-500.0,0.00029589,2]
[327451783,1716078690840,-1298.17,0.00029589,2]
[327451784,1716078690849,-852.23,0.00029589,2]
[327451785,1716078690859,-500.0,0.00029589,2]
[327451786,1716078690868,-283.22503,0.00029589,7]
[327451787,1716078690877,-500.0,0.00029589,2]
[327451788,1716078690886,-641.81,0.00029589,2]
[327451789,1716078690895,-1049.32,0.00029589,2]
[327451790,1716078690905,-283.22503,0.00029589,7]
[327451791,1716078690914,-559.84,0.00029589,2]
[327451792,1716078690923,-920.0,0.00029589,2]
[327451793,1716078690932,-500.0,0.00029589,2]
[327451794,1716078690941,-500.0,0.00029589,2]
[327451795,1716078690950,-500.0,0.00029589,2]
[327451796,1716078690958,-500.0,0.00029589,2]
[327451797,1716078690968,-1059.88,0.00029589,2]
[327451798,1716078690977,-1239.43,0.00029589,2]
[327451799,1716078690986,-500.0,0.00029589,2]
[327451800,1716078690995,-151.0,0.00029589,7]
[327451801,1716078691003,-930.82,0.00029589,2]
[327451802,1716078691012,-896.18,0.00029589,2]
[327451803,1716078691021,-1090.58,0.00029589,2]
[327451804,1716078691030,-500.0,0.00029589,2]
[327451805,1716078691039,-501.2,0.00029589,2]
[327451806,1716078691048,-756.03,0.00029589,2]
[327451807,1716078691057,-568.47,0.00029589,2]
[327451808,1716078691067,-3708.29,0.00029589,2]
[327451809,1716078691076,-634.45,0.00029589,2]
[327451810,1716078691085,-669.45,0.00029589,2]
[327451811,1716078691094,-640.29,0.00029589,2]
[327451812,1716078691103,-1188.88,0.00029589,2]
[327451813,1716078691112,-151.0,0.00029589,7]
[327451814,1716078691121,-1706.37,0.00029589,2]
[327451815,1716078691130,-151.0,0.00029589,7]
[327451816,1716078691140,-501.03,0.00029589,2]
[327451817,1716078691150,-500.0,0.00029589,2]
[327451818,1716078691159,-604.36,0.00029589,2]
[327451819,1716078691168,-18503.15,0.00029589,2]
[327451820,1716078691178,-500.0,0.00029589,2]
[327451821,1716078691187,-3042.71,0.00029589,2]
[327451822,1716078691196,-243.382886,0.00029589,7]
[327451823,1716078691206,-918.3,0.00029589,2]
[327451824,1716078691215,-673.49,0.00029589,2]
[327451825,1716078691224,-500.0,0.00029589,2]
[327451826,1716078691233,-1478.1,0.00029589,2]
[327451827,1716078691243,-151.0,0.00029589,7]
[327451828,1716078691252,-243.382886,0.00029589,7]
[327451829,1716078691261,-563.24,0.00029589,2]
[327451830,1716078691269,-1236.25,0.00029589,2]
[327451831,1716078691280,-6353.16,0.00029589,2]
[327451832,1716078691291,-858.51,0.00029589,2]
[327451833,1716078691301,-500.0,0.00029589,2]
[327451834,1716078691310,-1637.74,0.00029589,2]
[327451835,1716078691319,-151.0,0.00029589,7]
[327451836,1716078691330,-2093.82,0.00029589,2]
[327451837,1716078691339,-1213.21,0.00029589,2]
[327451838,1716078691348,-1033.3,0.00029589,2]
[327451839,1716078691358,-837.96,0.00029589,2]
[327451840,1716078691368,-649.63,0.00029589,2]
[327451841,1716078691378,-6393.72,0.00029589,2]
[327451842,1716078691387,-1059.23,0.00029589,2]
[327451843,1716078691397,-1055.23,0.00029589,2]
[327451844,1716078691406,-1196.2,0.00029589,2]
[327451845,1716078691415,-13606.2,0.00029589,2]
[327451846,1716078691424,-892.42,0.00029589,2]
[327451847,1716078691433,-9049.33,0.00029589,2]
[327451848,1716078691442,-500.0,0.00029589,2]
[327451849,1716078691451,-1312.43,0.00029589,2]
[327451850,1716078691460,-686.8,0.00029589,2]
[327451851,1716078691469,-929.49,0.00029589,2]
[327451852,1716078691478,-500.0,0.00029589,2]
[327451853,1716078691488,-1939.3,0.00029589,2]
[327451854,1716078691498,-743.66,0.00029589,2]
[327451855,1716078691508,-500.0,0.00029589,2]
[327451856,1716078691517,-2013.02,0.00029589,2]
[327451857,1716078691526,-1030.41,0.00029589,2]
[327451858,1716078691536,-500.0,0.00029589,2]
[327451859,1716078691545,-1781.24,0.00029589,2]
[327451860,1716078691555,-500.0,0.00029589,2]
[327451861,1716078691565,-784.58,0.00029589,2]
[327451862,1716078691575,-1095.5,0.00029589,2]
[327451863,1716078691584,-500.0,0.00029589,2]
[327451864,1716078691594,-675.78,0.00029589,2]
[327451865,1716078691603,-5578.21,0.00029589,2]
[327451866,1716078691613,-853.49,0.00029589,2]
[327451867,1716078691622,-1353.59,0.00029589,2]
[327451868,1716078691631,-4213.64,0.00029589,2]
[327451869,1716078691641,-613.16,0.00029589,2]
[327451870,1716078691650,-1183.02,0.00029589,2]
[327451871,1716078691660,-8319.89,0.00029589,2]
[327451872,1716078691669,-1523.68,0.00029589,2]
[327451873,1716078691678,-11263.28,0.00029589,2]
[327451874,1716078691687,-500.0,0.00029589,2]
[327451875,1716078691696,-687.5,0.00029589,2]
[327451876,1716078691706,-988.22,0.00029589,2]
[327451877,1716078691715,-500.0,0.00029589,2]
[327451878,1716078691725,-2530.3,0.00029589,2]
[327451879,1716078691734,-878.41,0.00029589,2]
[327451880,1716078691743,-11394.4,0.00029589,2]
[327451881,1716078691753,-1672.62,0.00029589,2]
[327451882,1716078691761,-500.0,0.00029589,2]
[327451883,1716078691770,-803.29,0.00029589,2]
[327451884,1716078691779,-7614.15,0.00029589,2]
[327451885,1716078691788,-1311.7,0.00029589,2]
[327451886,1716078691797,-1307.43,0.00029589,2]
[327451887,1716078691806,-500.0,0.00029589,2]
[327451888,1716078691815,-1045.39,0.00029589,2]
[327451889,1716078691824,-3075.12,0.00029589,2]
[327451890,1716078691834,-652.54,0.00029589,2]
[327451891,1716078691843,-863.6,0.00029589,2]
[327451892,1716078691852,-500.0,0.00029589,2]
[327451893,1716078691861,-500.0,0.00029589,2]
[327451894,1716078691871,-1831.66,0.00029589,2]
[327451895,1716078691881,-1329.27,0.00029589,2]
[327451896,1716078691890,-675.65,0.00029589,2]
[327451897,1716078691899,-12287.87,0.00029589,2]
[327451898,1716078691908,-1113.15,0.00029589,2]